bitfinex/quotes_BTCUSD_20241021
["timestamp","ask_amount","ask_price","bid_price","bid_amount"]
[1729524285926,0.151843,67106.0,67105.0,0.0875]
[1729524286157,0.151843,67106.0,67095.0,0.1336]
[1729524286158,0.149033,67099.0,67098.0,0.005]
[1729524286396,0.149033,67099.0,67098.0,0.007]
[1729524287117,0.15562152,67099.0,67098.0,0.007]
[1729524287344,0.15562152,67099.0,67098.0,0.012]
[1729524288455,0.15662152,67099.0,67098.0,0.013]
[1729524288668,0.15762152,67099.0,67098.0,0.014]
[1729524289131,0.15662152,67099.0,67098.0,0.018]
[1729524289349,0.15927352,67099.0,67098.0,0.019]
[1729524289624,0.15927352,67099.0,67098.0,0.018]
[1729524289846,0.15927352,67099.0,67098.0,0.019]
[1729524290077,0.15827352,67099.0,67098.0,0.018]
[1729524290307,0.15827352,67099.0,67098.0,0.017]
[1729524290308,0.15727352,67099.0,67098.0,0.017]
[1729524290528,0.15727352,67099.0,67098.0,0.019]
[1729524290972,0.00824052,67099.0,67098.0,0.04151]
[1729524291184,0.00824052,67099.0,67098.0,0.018]
[1729524291663,0.15727352,67099.0,67098.0,0.018]
[1729524291889,0.00824052,67099.0,67098.0,0.018]
[1729524292961,0.00824052,67099.0,67098.0,0.167035]
[1729524293181,0.00824052,67099.0,67098.0,0.018]
[1729524293406,0.00824052,67099.0,67098.0,0.167035]
[1729524293633,0.001652,67099.0,67098.0,0.167035]
[1729524293844,0.00832365,67099.0,67098.0,0.19993852]
[1729524294068,0.001652,67099.0,67098.0,0.167035]
[1729524296249,0.001652,67099.0,67098.0,0.243235]
[1729524297823,0.001652,67099.0,67098.0,0.0942]
[1729524298267,0.00833651,67099.0,67098.0,0.0942]
[1729524298496,0.001652,67099.0,67098.0,0.0942]
[1729524298704,0.00833651,67099.0,67098.0,0.0942]
[1729524300002,0.00833651,67099.0,67098.0,0.006]
[1729524300003,0.15736951,67099.0,67098.0,0.006]
[1729524300227,0.30632866,67099.0,67098.0,0.006]
[1729524300448,0.15736951,67099.0,67098.0,0.011]
[1729524300658,0.15736951,67099.0,67098.0,0.006]
[1729524301370,0.40632866,67099.0,67098.0,0.001]
[1729524301592,0.149049,67092.0,67091.0,3.53981013]
[1729524301819,0.29800815,67092.0,67091.0,3.54481013]
[1729524302043,0.30465277,67092.0,67091.0,3.53981013]
[1729524302260,0.29800815,67092.0,67091.0,3.53981013]
[1729524302490,0.30465277,67092.0,67091.0,3.53981013]
[1729524302715,0.30465277,67092.0,67091.0,3.54481013]
[1729524303178,0.31365277,67092.0,67091.0,3.54481013]
[1729524303397,0.31965277,67092.0,67091.0,3.54481013]
[1729524303640,0.30400815,67092.0,67091.0,3.54481013]
[1729524304101,0.41300815,67092.0,67091.0,3.53981013]
[1729524304314,0.62511015,67092.0,67091.0,3.53981013]
[1729524304520,0.55016231,67092.0,67091.0,3.39076013]
[1729524304734,0.66132258,67092.0,67091.0,3.39076013]
[1729524304981,0.55016231,67092.0,67091.0,3.39076013]
[1729524305217,0.66128769,67092.0,67091.0,3.39076013]
[1729524305450,0.54116231,67092.0,67091.0,3.39076013]
[1729524305680,0.63306276,67092.0,67091.0,3.39076013]
[1729524305898,0.63906276,67092.0,67091.0,3.39076013]
[1729524306114,0.63006276,67092.0,67091.0,3.39076013]
[1729524306557,0.63906276,67092.0,67091.0,3.39076013]
[1729524306807,0.55016792,67092.0,67091.0,3.39076013]
[1729524307027,0.59278898,67092.0,67091.0,3.39076013]
[1729524307237,0.55016844,67092.0,67091.0,3.39076013]
[1729524307506,0.50388853,67092.0,67091.0,3.39076013]
[1729524307720,0.55018823,67092.0,67091.0,3.39076013]
[1729524308364,0.63908868,67092.0,67091.0,3.39076013]
[1729524308600,0.66131361,67092.0,67091.0,3.39076013]
[1729524311025,0.55018823,67092.0,67091.0,3.39076013]
[1729524312144,0.63922529,67092.0,67091.0,3.39076013]
[1729524312357,0.55018823,67092.0,67091.0,3.39076013]
[1729524313415,0.63914592,67092.0,67091.0,3.39076013]
[1729524313852,0.55018823,67092.0,67091.0,3.39076013]
[1729524314095,0.63914592,67092.0,67091.0,3.39076013]
[1729524314318,0.63911982,67092.0,67091.0,3.39076013]
[1729524314533,0.55018823,67092.0,67091.0,3.39076013]
[1729524317615,0.66130878,67092.0,67091.0,3.39076013]
[1729524317822,0.55018823,67092.0,67091.0,3.39076013]
[1729524318037,0.66131483,67092.0,67091.0,3.39076013]
[1729524318262,0.47328823,67092.0,67091.0,3.39076013]
[1729524318680,0.5844054,67092.0,67091.0,3.39076013]
[1729524319818,0.5754054,67092.0,67091.0,3.39076013]
[1729524320485,0.5694054,67092.0,67091.0,3.39076013]
[1729524320696,0.46428823,67092.0,67091.0,3.39076013]
[1729524320906,0.45828823,67092.0,67091.0,3.39076013]
[1729524321341,0.47328823,67092.0,67091.0,3.39076013]
[1729524321564,0.46728823,67092.0,67091.0,3.39076013]
[1729524321817,0.56937439,67092.0,67091.0,3.39076013]
[1729524322066,0.58337439,67092.0,67091.0,3.39076013]
[1729524323167,0.47228823,67092.0,67091.0,3.39076013]
[1729524323375,0.58337439,67092.0,67091.0,3.39076013]
[1729524323582,0.57737439,67092.0,67091.0,3.39076013]
[1729524323825,0.46628823,67092.0,67091.0,3.39076013]
[1729524324052,0.47228823,67092.0,67091.0,3.39076013]
[1729524324269,0.46428823,67092.0,67091.0,3.39076013]
[1729524324494,0.58437439,67092.0,67091.0,3.39076013]
[1729524324710,0.47328823,67092.0,67091.0,3.39076013]
[1729524324949,0.47494023,67092.0,67091.0,3.39076013]
[1729524327091,0.80976118,67092.0,67091.0,3.33114013]
[1729524327307,1.39192373,67092.0,67091.0,3.24171013]
[1729524327535,1.39191753,67092.0,67091.0,3.24171013]
[1729524327764,1.39191032,67092.0,67091.0,3.24171013]
[1729524328234,1.37691032,67092.0,67091.0,3.24171013]
[1729524328470,1.38591032,67092.0,67091.0,3.21190013]
[1729524328695,1.30310423,67092.0,67091.0,3.12247013]
[1729524328905,1.29410423,67092.0,67091.0,2.97342013]
[1729524329393,1.30310423,67092.0,67091.0,2.97342013]
[1729524329662,1.39191032,67092.0,67091.0,2.97342013]
[1729524329863,1.30310423,67092.0,67091.0,2.82437013]
[1729524330810,1.30310423,67092.0,67091.0,2.79456013]
[1729524331277,1.39191032,67092.0,67091.0,2.70513013]
[1729524331513,1.30310423,67092.0,67091.0,2.67532013]
[1729524331742,1.30310423,67092.0,67091.0,2.64551013]
[1729524331972,1.30310423,67092.0,67091.0,2.61570013]
[1729524332208,1.30310423,67092.0,67091.0,2.58589013]
[1729524332436,1.30310423,67092.0,67091.0,2.52627013]
[1729524332661,1.30310423,67092.0,67091.0,2.49646013]
[1729524332893,1.30310423,67092.0,67091.0,2.46665013]
[1729524333136,1.39191851,67092.0,67091.0,2.46665013]
[1729524336437,0.56375451,67092.0,67091.0,2.46665013]
[1729524336657,0.54154343,67092.0,67091.0,2.46665013]
[1729524336892,0.56454343,67092.0,67091.0,2.34741013]
[1729524337114,0.49794023,67092.0,67091.0,2.31760013]
[1729524337332,0.48294023,67092.0,67091.0,2.31760013]
[1729524337559,0.57175451,67092.0,67091.0,2.31760013]
[1729524337780,0.49794023,67092.0,67091.0,2.16855013]
[1729524338002,0.58075451,67092.0,67091.0,2.16855013]
[1729524338219,0.48894023,67092.0,67091.0,2.16855013]
[1729524338473,0.58675451,67092.0,67091.0,2.16855013]
[1729524338889,0.55875451,67092.0,67091.0,2.16855013]
[1729524339113,0.46994023,67092.0,67091.0,2.16855013]
[1729524339849,0.51932554,67092.0,67091.0,2.16855013]
[1729524340105,0.46894023,67092.0,67091.0,2.16855013]
[1729524340338,0.52651839,67092.0,67091.0,2.16855013]
[1729524340575,0.47494023,67092.0,67091.0,2.16855013]
[1729524340789,0.49794023,67092.0,67091.0,2.16855013]
[1729524341273,0.48294023,67092.0,67091.0,2.16855013]
[1729524341710,0.58075451,67092.0,67091.0,2.16855013]
[1729524341924,0.49794023,67092.0,67091.0,2.16855013]
[1729524342140,0.48894023,67092.0,67091.0,2.16855013]
[1729524342418,0.59997244,67092.0,67091.0,2.16855013]
[1729524342639,0.48894023,67092.0,67091.0,2.16855013]
[1729524343803,0.49794023,67092.0,67091.0,2.16855013]
[1729524344222,0.48294023,67092.0,67091.0,2.16855013]
[1729524344686,0.49794023,67092.0,67091.0,2.16855013]
[1729524345165,0.50394023,67092.0,67091.0,2.16855013]
[1729524345636,0.63717888,67092.0,67091.0,2.16855013]
[1729524346559,0.50394023,67092.0,67091.0,2.16855013]
[1729524347485,1.00394023,67092.0,67091.0,2.16855013]
[1729524356408,1.02729988,67092.0,67091.0,2.16855013]
[1729524356857,1.01529988,67092.0,67091.0,2.16855013]
[1729524357084,1.01229988,67092.0,67091.0,2.16855013]
[1729524357601,1.01529988,67092.0,67091.0,2.16855013]
[1729524357796,1.02129988,67092.0,67091.0,2.16855013]
[1729524358036,1.00629988,67092.0,67091.0,2.16855013]
[1729524358462,1.02129988,67092.0,67091.0,2.16855013]
[1729524358681,1.01529988,67092.0,67091.0,2.16855013]
[1729524359155,0.50629988,67092.0,67091.0,2.16855013]
[1729524360062,0.51229988,67092.0,67091.0,2.16855013]
[1729524360277,0.50629988,67092.0,67091.0,2.16855013]
[1729524360498,0.49829988,67092.0,67091.0,2.16855013]
[1729524360963,0.48929988,67092.0,67091.0,2.16855013]
[1729524361423,0.48929988,67092.0,67091.0,2.01950013]
[1729524361424,1.01529988,67092.0,67091.0,2.01950013]
[1729524361649,1.02129988,67092.0,67091.0,1.98969013]
[1729524361889,6.79050088,67092.0,67091.0,0.97672945]
[1729524362115,7.30266371,67092.0,67091.0,0.51121898]
[1729524362348,7.27056445,67092.0,67091.0,0.51121898]
[1729524362570,7.30393239,67092.0,67091.0,0.51121898]
[1729524362801,7.30393239,67092.0,67091.0,0.45159698]
[1729524363036,7.29793239,67092.0,67091.0,0.36216398]
[1729524363294,7.29793239,67092.0,67091.0,0.32993627]
[1729524363523,7.29487147,67092.0,67091.0,0.29253622]
[1729524363767,7.28887147,67092.0,67067.0,0.30588874]
[1729524364015,7.28887147,67092.0,67060.0,0.20912918]
[1729524364016,0.249117,67061.0,67060.0,0.20912918]
[1729524364239,0.82794264,67061.0,67060.0,0.20912918]
[1729524364465,0.249129,67056.0,67055.0,0.0757]
[1729524364694,0.40640956,67056.0,67055.0,0.0757]
[1729524365170,0.55536871,67056.0,67055.0,0.0757]
[1729524365456,0.44438785,67056.0,67055.0,0.0757]
[1729524366337,0.53302063,67056.0,67055.0,0.0757]
[1729524366550,0.54227799,67056.0,67055.0,0.0757]
[1729524367204,0.55727799,67056.0,67055.0,0.0757]
[1729524367424,0.42234551,67056.0,67055.0,0.0757]
[1729524368567,0.48876695,67056.0,67055.0,0.0757]
[1729524369246,0.42234551,67056.0,67055.0,0.0757]
[1729524369468,0.46660772,67056.0,67055.0,0.0757]
[1729524370580,0.42234551,67056.0,67055.0,0.0757]
[1729524371052,0.42234551,67056.0,67055.0,0.076525]
[1729524371739,0.41308815,67056.0,67055.0,0.213325]
[1729524372681,0.41308815,67056.0,67055.0,0.215325]
[1729524372906,0.40408815,67056.0,67055.0,0.213325]
[1729524373157,0.39808815,67056.0,67055.0,0.213325]
[1729524373367,0.40408815,67056.0,67055.0,0.213325]
[1729524373811,0.41308815,67056.0,67055.0,0.213325]
[1729524374261,0.45912296,67056.0,67055.0,0.213325]
[1729524379597,0.50330223,67056.0,67055.0,0.076525]
[1729524379813,0.45912296,67056.0,67055.0,0.076525]
[1729524380022,0.50330223,67056.0,67055.0,0.076525]
[1729524380449,0.45912296,67056.0,67055.0,0.076525]
[1729524380664,0.50329296,67056.0,67055.0,0.076525]
[1729524380875,0.45012296,67056.0,67055.0,0.076525]
[1729524381307,0.45912296,67056.0,67055.0,0.076525]
[1729524382149,0.45312296,67056.0,67055.0,0.076525]
[1729524382360,0.45912296,67056.0,67055.0,0.076525]
[1729524384570,0.45912296,67056.0,67055.0,0.234925]
[1729524384775,0.45912296,67056.0,67055.0,0.232925]
[1729524384979,0.45894348,67056.0,67055.0,0.232925]
[1729524386363,0.45894348,67056.0,67055.0,0.2619704]
[1729524386364,0.35894348,67056.0,67055.0,0.2619704]
[1729524386604,0.015,67056.0,67055.0,0.247925]
[1729524386814,0.015,67056.0,67055.0,0.397056]
[1729524387026,0.149119,67061.0,67060.0,0.005]
[1729524387241,0.29807815,67061.0,67060.0,0.2393]
[1729524387482,0.298204,67069.0,67068.0,0.007]
[1729524387694,0.59626315,67069.0,67068.0,0.2413]
[1729524388539,0.29805915,67069.0,67068.0,0.2513]
[1729524389200,0.30305915,67069.0,67068.0,0.2473]
[1729524389428,0.29805915,67069.0,67068.0,0.2413]
[1729524389669,0.29805915,67069.0,67068.0,0.2393]
[1729524389895,0.40305915,67069.0,67068.0,0.2403]
[1729524390133,0.41105915,67069.0,67068.0,0.2363]
[1729524390389,0.41105915,67069.0,67068.0,0.2413]
[1729524390612,0.40305915,67069.0,67068.0,0.2403]
[1729524390825,0.41105915,67069.0,67068.0,0.2413]
[1729524391498,0.40605915,67069.0,67068.0,0.2403]
[1729524391927,0.41105915,67069.0,67068.0,0.2413]
[1729524392166,0.40305915,67069.0,67068.0,0.2393]
[1729524392372,0.41105915,67069.0,67068.0,0.2413]
[1729524392577,0.41605915,67069.0,67068.0,0.2413]
[1729524392836,0.40605915,67069.0,67068.0,0.2403]
[1729524393228,0.41105915,67069.0,67068.0,0.2403]
[1729524393445,0.39805915,67069.0,67068.0,0.2393]
[1729524393885,0.40505915,67069.0,67068.0,0.2403]
[1729524394407,0.008652,67069.0,67068.0,0.2523]
[1729524394616,0.008652,67069.0,67068.0,0.401402]
[1729524394859,0.013652,67069.0,67068.0,0.402402]
[1729524395062,0.013652,67069.0,67068.0,0.2533]
[1729524395275,0.006652,67069.0,67068.0,0.2523]
[1729524395484,0.006652,67069.0,67068.0,0.2513]
[1729524395691,0.009652,67069.0,67068.0,0.2523]
[1729524395903,0.014652,67069.0,67068.0,0.2533]
[1729524396172,0.006652,67069.0,67068.0,0.2523]
[1729524396368,0.006652,67069.0,67068.0,0.2403]
[1729524396369,0.30471115,67069.0,67068.0,0.2403]
[1729524396585,0.31271115,67069.0,67068.0,0.2403]
[1729524396825,0.30771115,67069.0,67068.0,0.2403]
[1729524397035,0.29971115,67069.0,67068.0,0.2463]
[1729524397238,0.29971115,67069.0,67068.0,0.2513]
[1729524397465,0.30471115,67069.0,67068.0,0.2513]
[1729524398120,0.30671115,67069.0,67068.0,0.2513]
[1729524398341,0.30471115,67069.0,67068.0,0.2513]
[1729524398542,0.30971115,67069.0,67068.0,0.2523]
[1729524398664,0.30471115,67069.0,67068.0,0.2523]
[1729524398873,0.31271115,67069.0,67068.0,0.2533]
[1729524399308,0.29971115,67069.0,67068.0,0.2513]
[1729524399756,0.30871115,67069.0,67068.0,0.2523]
[1729524399971,0.15961115,67069.0,67068.0,0.2523]
[1729524400211,0.30871115,67069.0,67068.0,0.2523]
[1729524401307,0.30871115,67069.0,67068.0,0.2423]
[1729524402012,0.40871115,67069.0,67068.0,0.077]
[1729524402241,0.40871115,67069.0,67068.0,0.006]
[1729524404022,0.40871115,67069.0,67068.0,0.001]
[1729524404238,0.45472697,67069.0,67068.0,0.001]
[1729524404708,0.45472697,67069.0,67068.0,0.006]
[1729524412764,0.45472697,67069.0,67068.0,0.016]
[1729524412972,0.40871115,67069.0,67068.0,0.252]
[1729524414702,0.30871115,67069.0,67068.0,0.252]
[1729524414901,0.30871115,67069.0,67068.0,0.254]
[1729524415105,0.010652,67069.0,67068.0,0.254]
[1729524415978,0.159752,67069.0,67068.0,0.254]
[1729524416186,0.010652,67069.0,67068.0,0.254]
[1729524416392,0.159752,67069.0,67068.0,0.254]
[1729524416633,0.010652,67069.0,67068.0,0.254]
[1729524417099,0.010652,67069.0,67068.0,0.403102]
[1729524417333,0.010652,67069.0,67068.0,0.418102]
[1729524418219,0.004652,67069.0,67068.0,0.417102]
[1729524418442,0.005652,67069.0,67068.0,0.421102]
[1729524418650,0.002652,67069.0,67068.0,0.421102]
[1729524418868,0.003652,67069.0,67068.0,0.425102]
[1729524419078,0.003652,67069.0,67068.0,0.416102]
[1729524419293,0.002652,67069.0,67068.0,0.411102]
[1729524419499,0.003652,67069.0,67068.0,0.415102]
[1729524419719,0.003652,67069.0,67068.0,0.410102]
[1729524419927,0.003652,67069.0,67068.0,0.266]
[1729524420136,0.003652,67069.0,67068.0,0.261]
[1729524420346,0.30171115,67069.0,67068.0,0.261]
[1729524420559,0.40171115,67069.0,67068.0,0.018]
[1729524420772,0.44785626,67069.0,67068.0,0.008]
[1729524420995,0.45716868,67069.0,67068.0,0.008]
[1729524421203,0.45516868,67069.0,67068.0,0.005]
[1729524421412,0.45516868,67069.0,67058.0,0.0858]
[1729524421413,0.149122,67059.0,67058.0,0.0858]
[1729524421632,0.34422626,67059.0,67058.0,0.0858]
[1729524422325,0.149126,67057.0,67056.0,0.000826]
[1729524422536,0.39808515,67057.0,67056.0,0.000826]
[1729524422751,0.51054095,67057.0,67056.0,0.000826]
[1729524423007,0.44423026,67057.0,67056.0,0.000826]
[1729524423225,0.48842921,67057.0,67056.0,0.000826]
[1729524423438,0.51054095,67057.0,67056.0,0.000826]
[1729524423850,0.4884298,67057.0,67056.0,0.000826]
[1729524424062,0.51054095,67057.0,67056.0,0.000826]
[1729524424284,0.44423026,67057.0,67056.0,0.000826]
[1729524424703,0.75643326,67057.0,67056.0,0.000826]
[1729524424949,0.68196224,67057.0,67056.0,0.000826]
[1729524425147,0.96196224,67057.0,67056.0,0.001826]
[1729524425355,1.73387089,67057.0,67055.0,0.00068184]
[1729524425589,2.44178865,67056.0,67055.0,0.00068184]
[1729524425793,1.23822726,67056.0,67055.0,0.00068184]
[1729524426237,0.66067026,67056.0,67055.0,0.00068184]
[1729524426443,0.79314791,67056.0,67055.0,0.00068184]
[1729524427093,0.66067026,67056.0,67055.0,0.00068184]
[1729524427737,0.66567026,67056.0,67055.0,0.00068184]
[1729524428154,0.47223326,67056.0,67055.0,0.00068184]
[1729524428571,1.00369026,67056.0,67055.0,0.00068184]
[1729524428988,0.48023326,67056.0,67055.0,0.00068184]
[1729524429189,0.58099026,67056.0,67055.0,0.00068184]
[1729524430279,0.48023326,67056.0,67055.0,0.00068184]
[1729524430949,0.45723326,67056.0,67055.0,0.00068184]
[1729524431172,0.52344904,67056.0,67055.0,0.00068184]
[1729524431384,0.45723326,67056.0,67055.0,0.00068184]
[1729524431597,0.50137492,67056.0,67055.0,0.00068184]
[1729524431822,0.49337492,67056.0,67055.0,0.00068184]
[1729524432048,0.49637492,67056.0,67055.0,0.00068184]
[1729524432257,0.45223326,67056.0,67055.0,0.00068184]
[1729524432483,0.50137492,67056.0,67055.0,0.00068184]
[1729524433122,0.45723326,67056.0,67055.0,0.00068184]
[1729524433546,0.25063116,67050.0,67049.0,0.005]
[1729524433752,0.39959031,67050.0,67049.0,0.005]
[1729524434073,0.25044831,67050.0,67049.0,0.005]
[1729524434274,0.39959031,67050.0,67049.0,0.005]
[1729524434523,0.69787431,67050.0,67049.0,0.007]
[1729524435114,0.70287431,67050.0,67049.0,0.008]
[1729524435489,0.71087431,67050.0,67049.0,0.007]
[1729524435694,0.71087431,67050.0,67049.0,0.009]
[1729524437295,0.71087431,67050.0,67049.0,0.2505]
[1729524438360,0.71087431,67050.0,67049.0,0.2605]
[1729524439008,0.46191516,67050.0,67049.0,0.2605]
[1729524439342,0.01448916,67050.0,67049.0,0.2605]
[1729524439765,0.01448916,67050.0,67049.0,0.409644]
[1729524439911,0.00148916,67050.0,67049.0,0.407644]
[1729524440321,0.00648916,67050.0,67049.0,0.422644]
[1729524440495,0.00648916,67050.0,67049.0,0.42347]
[1729524440698,0.00348916,67050.0,67049.0,0.269326]
[1729524440959,0.00348916,67050.0,67049.0,0.259326]
[1729524440960,0.29959031,67050.0,67049.0,0.259326]
[1729524441172,0.29959031,67050.0,67049.0,0.091226]
[1729524441371,0.29959031,67050.0,67049.0,0.099226]
[1729524441581,0.30059031,67050.0,67049.0,0.103226]
[1729524441788,0.30059031,67050.0,67049.0,0.098226]
[1729524441789,0.29959031,67050.0,67049.0,0.098226]
[1729524442964,0.30159031,67050.0,67049.0,0.098226]
[1729524443171,0.30159031,67050.0,67049.0,0.099226]
[1729524443671,0.29959031,67050.0,67049.0,0.098226]
[1729524443900,0.31259031,67050.0,67049.0,0.100226]
[1729524446754,0.01448916,67050.0,67049.0,0.100226]
[1729524446924,0.01448916,67050.0,67049.0,0.42507]
[1729524447557,0.01448916,67050.0,67049.0,0.275926]
[1729524447991,0.01448916,67050.0,67049.0,0.42507]
[1729524448157,0.00948916,67050.0,67049.0,0.42407]
[1729524448413,0.00948916,67050.0,67049.0,0.277926]
[1729524449080,0.00148916,67050.0,67049.0,0.42607]
[1729524450186,0.00148916,67050.0,67049.0,0.42307]
[1729524450512,0.00248916,67050.0,67049.0,0.43207]
[1729524450721,0.00248916,67050.0,67049.0,0.42307]
[1729524450722,0.00148916,67050.0,67049.0,0.42307]
[1729524451208,0.00148916,67050.0,67049.0,0.42607]
[1729524451410,0.00148916,67050.0,67049.0,0.42307]
[1729524451617,0.00148916,67050.0,67049.0,0.279926]
[1729524451787,0.00248916,67050.0,67049.0,0.42907]
[1729524452776,0.00248916,67050.0,67049.0,0.43207]
[1729524453180,0.00248916,67050.0,67049.0,0.282926]
[1729524453407,0.15163116,67050.0,67049.0,0.277926]
[1729524453606,0.15163116,67050.0,67049.0,0.282926]
[1729524454731,0.00248916,67050.0,67049.0,0.282926]
[1729524454923,0.00248916,67050.0,67049.0,0.43207]
[1729524457209,0.00248916,67050.0,67049.0,0.43707]
[1729524457616,0.00248916,67050.0,67049.0,0.44207]
[1729524458468,0.00248916,67050.0,67049.0,0.74772675]
[1729524458629,0.001652,67052.0,67051.0,0.03]
[1729524458827,0.001652,67052.0,67051.0,0.41924]
[1729524459800,0.001652,67052.0,67051.0,0.42424]
[1729524460333,0.150789,67052.0,67051.0,0.2651]
[1729524460565,0.150789,67052.0,67051.0,0.2611]
[1729524460774,0.001652,67052.0,67051.0,0.2611]
[1729524461038,0.001652,67052.0,67051.0,0.2631]
[1729524461248,0.001652,67052.0,67051.0,0.2611]
[1729524461466,0.001652,67052.0,67051.0,0.4821761]
[1729524461675,0.001652,67052.0,67051.0,0.4911761]
[1729524461894,0.001652,67052.0,67051.0,0.41924]
[1729524462112,0.002652,67052.0,67051.0,0.41924]
[1729524462575,0.001652,67052.0,67051.0,0.41924]
[1729524462815,0.001652,67052.0,67051.0,0.42024]
[1729524463474,0.001652,67052.0,67051.0,0.42324]
[1729524463691,0.002652,67052.0,67051.0,0.42624]
[1729524463898,0.002652,67052.0,67051.0,0.43424]
[1729524464096,0.003652,67052.0,67051.0,0.43424]
[1729524466934,0.003652,67052.0,67051.0,0.2751]
[1729524467396,0.003652,67052.0,67051.0,0.42424]
[1729524467611,0.003652,67052.0,67051.0,0.42924]
[1729524468038,0.003652,67052.0,67051.0,0.43424]
[1729524469567,0.003652,67052.0,67051.0,0.2751]
[1729524469786,0.003652,67052.0,67051.0,0.2851]
[1729524470274,0.003652,67052.0,67051.0,0.43424]
[1729524471989,0.003652,67052.0,67051.0,0.5374046]
[1729524472636,0.003652,67052.0,67051.0,0.43424]
[1729524478626,0.002652,67052.0,67051.0,0.42724]
[1729524479009,0.003652,67052.0,67051.0,0.43324]
[1729524479939,0.002652,67052.0,67051.0,0.42524]
[1729524480329,0.003652,67052.0,67051.0,0.43124]
[1729524481183,0.003652,67052.0,67051.0,0.2821]
[1729524481593,0.152789,67052.0,67051.0,0.2821]
[1729524481804,0.003652,67052.0,67051.0,0.2821]
[1729524483296,0.003652,67052.0,67051.0,0.43124]
[1729524487399,0.003652,67052.0,67051.0,0.2821]
[1729524487597,0.003652,67052.0,67051.0,0.43124]
[1729524488839,0.002652,67052.0,67051.0,0.42524]
[1729524489171,0.002652,67052.0,67051.0,0.42924]
[1729524489592,0.001652,67052.0,67051.0,0.42324]
[1729524489994,0.002652,67052.0,67051.0,0.42824]
[1729524490912,0.298229,67063.0,67051.0,0.42824]
[1729524490913,0.04595119,67069.0,67068.0,0.015]
[1729524491126,0.001652,67069.0,67068.0,0.171102]
[1729524492992,0.006652,67069.0,67068.0,0.171102]
[1729524493618,0.007652,67069.0,67068.0,0.180102]
[1729524493863,0.008652,67069.0,67068.0,0.186102]
[1729524494602,0.008652,67069.0,67068.0,0.196102]
[1729524497413,0.008652,67069.0,67068.0,0.4087775]
[1729524498260,0.008652,67069.0,67068.0,0.74253665]
[1729524499864,0.008652,67069.0,67068.0,0.437802]
[1729524504404,0.008652,67069.0,67068.0,0.60976115]
[1729524505229,0.008652,67069.0,67068.0,0.61176115]
[1729524506081,0.22378874,67079.0,67078.0,0.18108]
[1729524506287,0.22378874,67079.0,67078.0,0.42478]
[1729524506499,0.32378874,67095.0,67091.0,0.022]
[1729524506500,0.22378874,67095.0,67091.0,0.022]
[1729524506723,0.22378874,67095.0,67091.0,0.171051]
[1729524507132,0.22378874,67095.0,67091.0,0.181051]
[1729524507951,0.002652,67092.0,67091.0,0.193051]
[1729524508160,0.003652,67092.0,67091.0,0.202051]
[1729524508378,0.001652,67099.0,67098.0,0.181035]
[1729524508585,0.22378874,67105.0,67098.0,0.181035]
[1729524508586,0.22378874,67105.0,67104.0,0.1105]
[1729524508793,0.22378874,67105.0,67104.0,0.259522]
[1729524509219,0.000826,67106.0,67105.0,0.18102]
[1729524510775,0.000826,67106.0,67105.0,0.18502]
[1729524510998,0.000826,67106.0,67105.0,0.2709825]
[1729524511200,0.000826,67106.0,67105.0,0.2789825]
[1729524511744,0.000826,67106.0,67105.0,0.45094165]
[1729524511946,0.000826,67106.0,67105.0,0.36497915]
[1729524512713,0.000826,67106.0,67105.0,0.52127915]
[1729524513498,0.000826,67106.0,67105.0,0.37232]
[1729524513699,0.000826,67106.0,67105.0,0.34932]
[1729524517858,0.000826,67106.0,67105.0,0.34183512]
[1729524518133,0.000826,67106.0,67105.0,0.44347913]
[1729524520432,0.000826,67106.0,67105.0,0.34183512]
[1729524523273,0.000826,67106.0,67105.0,0.49079427]
[1729524523500,0.000826,67111.0,67108.0,0.17352812]
[1729524525147,0.000826,67111.0,67108.0,0.01451512]
[1729524525590,0.000826,67111.0,67108.0,0.16352812]
[1729524525887,0.000826,67111.0,67108.0,0.01551512]
[1729524526124,0.000826,67111.0,67108.0,0.20188343]
[1729524526360,0.000826,67111.0,67108.0,0.20688343]
[1729524526823,0.000826,67111.0,67108.0,0.17952812]
[1729524527025,0.000826,67111.0,67108.0,0.03051512]
[1729524527294,0.149833,67111.0,67108.0,0.17952812]
[1729524527722,0.000826,67111.0,67108.0,0.17952812]
[1729524528711,0.149837,67109.0,67108.0,0.01551512]
[1729524529495,0.149837,67109.0,67108.0,0.011]
[1729524529496,0.29879615,67109.0,67108.0,0.011]
[1729524529718,0.29879615,67109.0,67108.0,0.005]
[1729524529927,0.39879615,67109.0,67108.0,0.005]
[1729524530126,0.39879615,67109.0,67099.0,0.002825]
[1729524530127,0.149024,67103.0,67102.0,0.00751512]
[1729524530328,0.29798315,67103.0,67102.0,0.23130386]
[1729524530531,0.29798315,67103.0,67102.0,0.00751512]
[1729524530734,0.29798315,67103.0,67102.0,0.00951512]
[1729524530936,0.29798315,67103.0,67102.0,0.00751512]
[1729524531206,0.29798315,67103.0,67102.0,0.00951512]
[1729524532029,0.29798315,67103.0,67102.0,0.00751512]
[1729524532435,0.30398315,67103.0,67102.0,0.00851512]
[1729524532995,0.64018315,67103.0,67102.0,0.001]
[1729524533585,0.68624964,67103.0,67102.0,0.001]
[1729524535428,0.68924964,67103.0,67102.0,0.001]
[1729524535631,0.149031,67100.0,67099.0,0.000825]
[1729524535836,0.44405664,67100.0,67099.0,0.000825]
[1729524536685,0.52345664,67100.0,67099.0,0.000825]
[1729524537139,0.69315664,67100.0,67099.0,0.000825]
[1729524537396,0.69315664,67100.0,67099.0,0.001825]
[1729524537617,0.70015664,67100.0,67099.0,0.001825]
[1729524542399,0.70015664,67100.0,67086.0,0.22378874]
[1729524542400,0.24906,67087.0,67086.0,0.22378874]
[1729524542604,1.02084509,67087.0,67086.0,0.22378874]
[1729524542809,0.249075,67080.0,67074.0,0.00751512]
[1729524542962,0.0163,67078.0,67071.0,0.22378874]
[1729524543159,0.149093,67072.0,67071.0,0.22378874]
[1729524543369,0.29805215,67072.0,67071.0,0.22378874]
[1729524543751,0.1491,67069.0,67068.0,0.00751512]
[1729524543960,0.29805915,67069.0,67068.0,0.00751512]
[1729524544194,0.149106,67066.0,67065.0,0.00451512]
[1729524544406,0.14895915,67066.0,67065.0,0.00751512]
[1729524544583,0.29806515,67066.0,67065.0,0.00751512]
[1729524546050,0.29806515,67066.0,67065.0,0.00951512]